bitfinex-derivatives/quotes_ETHF0:USTF0_20240905
["timestamp","ask_amount","ask_price","bid_price","bid_amount"]
[1725553497470,0.00631021,2377.7,2377.6,4.86214]
[1725553497976,0.00631021,2377.7,2377.6,4.01214]
[1725553499281,0.00631021,2377.7,2377.6,2.96061]
[1725553499481,0.00631021,2377.7,2377.6,4.01214]
[1725553499677,0.00631021,2377.7,2377.2,3.59801021]
[1725553499880,3.2078,2377.5,2377.4,0.42064]
[1725553500274,7.4142,2377.5,2377.2,0.00631021]
[1725553500477,2.52398,2377.3,2377.2,0.00631021]
[1725553500682,5.27350512,2377.3,2377.2,0.00631021]
[1725553500886,14.42824512,2377.3,2377.2,0.00631021]
[1725553501183,11.67872,2377.3,2377.2,0.00631021]
[1725553501484,14.42168242,2377.3,2377.2,0.00631021]
[1725553501795,14.42153039,2377.3,2377.2,0.00631021]
[1725553502277,11.67872,2377.3,2377.2,0.00631021]
[1725553502984,11.67872,2377.3,2376.6,0.211]
[1725553502985,0.42077,2376.7,2376.6,0.211]
[1725553503174,0.42077,2376.7,2375.7,14.484]
[1725553503175,6.80754693,2376.7,2375.8,0.0338]
[1725553503375,3.6287,2376.0,2375.8,0.0338]
[1725553503580,0.42091,2375.9,2375.8,0.0338]
[1725553503780,4.62971,2375.9,2375.8,0.0338]
[1725553504286,3.2078,2376.0,2375.9,0.42091]
[1725553504878,0.00631021,2376.1,2376.0,0.42089]
[1725553505483,0.00631021,2376.1,2376.0,4.62969]
[1725553506386,0.00631021,2376.1,2376.0,14.01969]
[1725553506585,0.00631021,2376.1,2376.0,8.01969]
[1725553507588,0.00631021,2376.1,2375.9,0.4209]
[1725553508091,0.00631021,2376.1,2375.7,0.28004562]
[1725553508283,0.00631021,2376.1,2375.6,0.00631021]
[1725553508486,0.00631021,2376.1,2376.0,0.42089]
[1725553510089,0.00631021,2376.1,2376.0,18.27973]
[1725553510284,6.16298854,2376.8,2376.7,0.42077]
[1725553510285,3.4188,2376.8,2376.7,0.42077]
[1725553510480,3.2078,2376.8,2376.7,0.42077]
[1725553511084,5.95198854,2377.4,2376.7,5.25913]
[1725553511290,0.00631021,2377.3,2377.2,0.42068]
[1725553511693,0.00631021,2377.3,2377.1,0.42069]
[1725553512086,4.2064,2377.2,2376.8,0.00631021]
[1725553512395,0.42071,2377.1,2376.8,0.42706021]
[1725553512694,4.25964,2376.9,2376.4,4.146]
[1725553512994,4.25964,2376.9,2376.2,0.42085]
[1725553512995,0.4208,2376.5,2376.2,0.42085]
[1725553513190,3.2078,2376.4,2375.9,3.39]
[1725553513492,0.42086,2376.2,2375.9,0.4209]
[1725553513685,3.5999,2376.4,2375.7,7.77473]
[1725553513686,0.4209,2376.0,2375.7,7.77473]
[1725553513884,3.2078,2375.9,2375.8,0.00631021]
[1725553514089,0.00631021,2376.1,2375.8,0.00631021]
[1725553514090,0.00631021,2376.1,2376.0,1.47313]
[1725553514284,0.00631021,2376.1,2376.0,0.42089]
[1725553515099,0.00631021,2376.1,2376.0,10.62969]
[1725553515300,0.00631021,2376.1,2376.0,11.68193]
[1725553515591,0.211,2376.9,2376.8,0.42075]
[1725553515892,2.74418854,2377.1,2376.8,0.42075]
[1725553516086,6.95138854,2377.1,2376.8,0.42074]
[1725553516284,0.3863,2377.2,2376.7,3.39]
[1725553516604,0.3863,2377.2,2376.4,1.26620048]
[1725553516605,0.00631021,2377.2,2377.1,0.4207]
[1725553519902,0.00631021,2377.2,2377.1,0.7807]
[1725553520597,0.00631021,2377.2,2377.1,0.4207]
[1725553520800,3.21411021,2377.2,2376.8,0.3663]
[1725553520989,3.21411021,2377.2,2375.7,4.30367521]
[1725553520990,3.2078,2376.9,2376.2,3.601]
[1725553521192,3.2078,2376.6,2376.0,4.1223]
[1725553521393,5.95198854,2376.9,2376.5,0.42079]
[1725553521588,2.74418854,2377.0,2376.5,3.39]
[1725553521795,0.7183,2377.1,2376.8,0.42073]
[1725553521996,0.7183,2377.1,2376.8,3.39]
[1725553522196,0.7183,2377.1,2377.0,0.42071]
[1725553522398,0.7183,2377.1,2376.5,3.7566]
[1725553522602,0.7183,2377.1,2376.8,0.42074]
[1725553522802,0.7183,2377.1,2376.5,4.8086]
[1725553522990,0.7183,2377.1,2376.6,0.3723]
[1725553523301,0.00631021,2377.2,2377.1,0.4207]
[1725553523607,3.21411021,2377.2,2377.0,0.4207]
[1725553523793,3.21411021,2377.2,2376.8,3.39]
[1725553523794,3.21411021,2377.2,2376.9,0.42072]
[1725553523993,3.21411021,2377.2,2376.8,3.39]
[1725553524307,3.21411021,2377.2,2376.9,0.42072]
[1725553524491,0.42071,2377.1,2376.6,0.3723]
[1725553524803,0.00631021,2377.2,2376.6,0.3723]
[1725553524995,0.00631021,2377.2,2376.9,0.42073]
[1725553525194,0.00631021,2377.2,2377.0,0.42071]
[1725553525499,0.00631021,2377.2,2377.1,0.4207]
[1725553527000,0.00631021,2377.2,2377.1,1.47245]
[1725553527299,0.00631021,2377.2,2377.1,5.67885]
[1725553527504,0.00631021,2377.2,2377.1,6.05915]
[1725553528198,0.00631021,2377.2,2377.1,5.0074]
[1725553528798,0.00631021,2377.2,2377.1,0.801]
[1725553530201,0.00631021,2377.2,2377.1,0.4207]
[1725553530801,0.00631021,2377.2,2377.1,5.67885]
[1725553531307,0.00631021,2377.2,2377.1,4.6271]
[1725553531811,0.00631021,2377.2,2377.1,0.4207]
[1725553532505,0.00631021,2377.2,2377.1,6.7306]
[1725553532702,2.74418854,2377.9,2377.1,13.4142]
[1725553532898,4.148,2378.3,2377.6,6.5978]
[1725553533099,0.7292,2378.3,2377.9,3.39]
[1725553533401,3.937,2378.3,2378.1,0.42051]
[1725553533704,3.937,2378.3,2378.0,0.42054]
[1725553533913,3.937,2378.3,2378.1,0.42051]
[1725553534204,0.00631021,2378.4,2378.2,3.39]
[1725553534411,0.00631021,2378.4,2378.1,0.42051]
[1725553534711,0.00631021,2378.4,2378.1,0.42052]
[1725553535208,0.00631021,2378.4,2378.2,0.4205]
[1725553535507,0.00631021,2378.4,2378.1,0.42051]
[1725553535705,0.00631021,2378.4,2378.2,0.4205]
[1725553536099,0.00631021,2378.4,2378.1,0.42051]
[1725553536403,0.00631021,2378.4,2378.2,0.4205]
[1725553536801,0.00631021,2378.4,2378.3,0.42048]
[1725553537909,0.00631021,2378.4,2378.0,3.39]
[1725553538508,0.00631021,2378.4,2378.3,0.42048]
[1725553538913,0.00631021,2378.4,2378.3,11.00628]
[1725553538914,2.1e-07,2378.4,2378.3,11.00628]
[1725553539102,0.211,2379.0,2378.9,0.42038]
[1725553539314,3.2078,2379.1,2378.4,3.764]
[1725553539706,3.2078,2378.8,2378.4,3.764]
[1725553540106,3.2078,2378.8,2378.6,0.42042]
[1725553541011,3.2078,2378.8,2378.5,0.42044]
[1725553541207,3.2078,2378.8,2378.6,0.42042]
[1725553542009,3.2078,2378.8,2378.4,4.18446]
[1725553542309,3.2078,2378.8,2378.5,0.42044]
[1725553542514,3.2078,2378.8,2378.6,0.42043]
[1725553542816,3.2078,2378.8,2378.6,0.42042]
[1725553543803,3.2078,2378.8,2378.4,3.764]
[1725553544004,3.5972,2378.8,2378.4,3.764]
[1725553544301,3.5972,2378.8,2378.6,0.42042]
[1725553544507,3.5972,2378.8,2378.4,3.764]
[1725553544810,0.3894,2378.8,2378.1,3.6647946]
[1725553545020,0.42048,2378.4,2378.1,0.42051]
[1725553545206,0.42048,2378.4,2377.9,0.00631021]
[1725553545207,0.42054,2378.0,2377.9,0.00631021]
[1725553545404,0.42053,2378.1,2377.9,0.00631021]
[1725553545608,4.98163,2378.1,2377.9,0.00631021]
[1725553545814,4.2056,2378.0,2377.9,0.00631021]
[1725553546110,4.2056,2378.0,2377.9,0.42687021]
[1725553546507,4.2056,2378.0,2377.9,0.00631021]
[1725553547206,0.77682,2378.1,2377.9,0.00631021]
[1725553548006,0.3563,2378.1,2377.9,0.42686021]
[1725553548204,0.3563,2378.1,2378.0,0.42054]
[1725553548716,4.5611,2378.1,2378.0,0.42054]
[1725553549111,0.3563,2378.1,2378.0,0.42054]
[1725553549613,0.3563,2378.1,2377.9,0.00631021]
[1725553549614,4.5611,2378.1,2377.9,0.00631021]
[1725553549816,0.746,2378.1,2377.9,0.00631021]
[1725553550109,0.42054,2378.0,2377.9,0.00631021]
[1725553550317,4.62614,2378.0,2377.9,0.00631021]
[1725553550511,11.67749,2378.0,2377.9,0.00631021]
[1725553550715,1.0514,2377.9,2377.1,0.2448]
[1725553551014,1.0514,2377.9,2377.1,0.0338]
[1725553551015,0.42068,2377.2,2377.1,0.0338]
[1725553551219,3.2078,2377.4,2377.1,0.0338]
[1725553551510,0.78537,2377.3,2377.1,0.45449]
[1725553551914,0.3647,2377.3,2377.2,0.42068]
[1725553552115,0.78537,2377.3,2377.1,0.45449]
[1725553552321,0.3647,2377.3,2377.2,0.42068]
[1725553552817,4.5711,2377.3,2377.2,0.42068]
[1725553553111,0.42068,2377.2,2377.1,0.0338]
[1725553553311,4.62708,2377.2,2377.1,0.0338]
[1725553553918,4.6002,2377.2,2377.1,0.0338]
[1725553554112,4.6002,2377.2,2377.1,0.4545]
[1725553554323,5.02088,2377.2,2377.1,0.4545]
[1725553555119,4.6002,2377.2,2377.1,0.4545]
[1725553555719,4.6002,2377.2,2377.1,0.4207]
[1725553557119,0.3938,2377.2,2377.1,0.4207]
[1725553559217,4.6002,2377.2,2377.1,0.4207]
[1725553560123,0.3938,2377.2,2377.1,1.47245]
[1725553560619,0.00631021,2377.4,2377.3,1.47232]
[1725553560819,0.00631021,2377.4,2377.3,2.52398]
[1725553561119,0.00631021,2377.4,2377.3,5.91398]
[1725553561423,7.42051021,2377.4,2377.0,0.00631021]
[1725553561618,3.6285,2377.1,2377.0,0.00631021]
[1725553561823,3.2078,2377.1,2377.0,0.00631021]
[1725553562013,1.0877,2377.3,2377.1,0.42069]
[1725553562210,1.0877,2377.3,2377.2,0.42068]
[1725553562914,0.3664,2377.3,2377.2,1.47238]
[1725553563115,0.00631021,2377.4,2377.3,0.42066]
[1725553564618,0.00631021,2377.4,2377.3,1.47232]
[1725553564816,0.00631021,2377.4,2377.3,0.42066]
[1725553565720,10.21271021,2377.4,2377.0,0.42701021]
[1725553565923,10.21271021,2377.4,2377.1,0.42069]
[1725553565924,0.42067,2377.3,2377.1,0.42069]
[1725553566123,0.42067,2377.3,2377.0,0.00631021]
[1725553566124,4.2064,2377.3,2377.0,0.00631021]
[1725553566326,3.6285,2377.1,2377.0,0.42702021]
[1725553566816,3.5825,2377.1,2377.0,0.42702021]
[1725553567020,0.3747,2377.1,2377.0,0.42702021]
[1725553567214,0.7954,2377.1,2377.0,0.00631021]
[1725553567524,11.0026,2377.1,2377.0,0.00631021]
[1725553567824,11.0026,2377.1,2376.4,2.82214]
[1725553567825,1.05194,2376.7,2376.2,0.63185]
[1725553568012,3.2078,2376.4,2376.2,0.42085]
[1725553568215,3.2078,2376.4,2375.8,3.39]
[1725553568216,0.42084,2376.3,2376.1,0.42086]
[1725553568415,0.3767,2376.3,2376.1,0.42086]
[1725553568721,0.3609,2376.6,2376.5,0.4208]
[1725553569329,0.78169,2376.6,2376.2,0.3864]
[1725553569524,3.6286,2376.5,2376.2,0.3864]
[1725553569728,0.3609,2376.6,2376.2,0.3864]
[1725553570225,0.78169,2376.6,2376.2,0.3864]
[1725553570426,0.3609,2376.6,2376.5,0.4208]
[1725553571020,0.78169,2376.6,2376.4,0.42081]
[1725553571523,0.78169,2376.6,2376.0,0.00631021]
[1725553571524,7.4158,2376.5,2376.0,0.00631021]
[1725553571830,3.62861,2376.5,2376.0,0.00631021]
[1725553572327,3.62861,2376.5,2376.3,0.42083]
[1725553572713,3.2078,2376.5,2376.4,0.42082]
[1725553572918,0.3609,2376.6,2376.5,0.4208]
[1725553573122,0.3609,2376.6,2376.3,0.42084]
[1725553573123,9.5687,2376.6,2376.3,0.42084]
[1725553573327,0.42082,2376.5,2376.3,0.42083]
[1725553573723,3.98949,2376.6,2376.4,0.42082]
[1725553573924,3.5687,2376.6,2376.5,0.4208]
[1725553574229,0.79747,2376.8,2376.7,0.42077]
[1725553574230,0.3767,2376.8,2376.7,0.42077]
[1725553574429,3.5764,2377.2,2377.1,0.4207]
[1725553574628,3.5764,2377.2,2376.7,1.05193]
[1725553574830,3.5764,2377.2,2376.8,0.3596]
[1725553575222,0.4207,2377.1,2377.0,0.42071]
[1725553575632,0.42071,2377.0,2376.9,0.42072]
[1725553575841,7.7836,2377.2,2376.3,1.44149]
[1725553576128,3.2078,2376.9,2376.8,0.42075]
[1725553576327,3.62854,2376.9,2376.7,0.42076]
[1725553576627,0.42076,2376.8,2376.6,0.42078]
[1725553576927,0.42075,2376.8,2376.7,0.42076]
[1725553577232,0.42075,2376.8,2376.4,0.3761]
[1725553577233,3.62854,2376.9,2376.4,0.3761]
[1725553578427,3.62854,2376.9,2376.8,0.42075]
[1725553578428,3.2078,2376.9,2376.8,0.42075]
[1725553579528,3.62853,2376.9,2376.8,0.42075]
[1725553579919,0.42073,2377.0,2376.9,0.42073]
[1725553580438,0.42073,2377.0,2376.5,1.05199]
[1725553580439,0.42074,2376.9,2376.8,0.42074]
[1725553580729,3.2078,2377.0,2376.8,0.42074]
[1725553580928,3.2078,2377.0,2376.7,0.42076]
[1725553581122,1.05184,2376.9,2376.3,0.3894]
[1725553581330,0.42082,2376.4,2376.3,0.42083]
[1725553581630,0.42082,2376.5,2376.4,0.42082]
[1725553581827,0.42083,2376.4,2376.3,0.42083]
[1725553582026,1.1514,2376.5,2376.4,0.42082]
[1725553582225,1.15141,2376.5,2376.4,0.42082]
[1725553582425,0.7306,2376.5,2376.4,0.42082]
[1725553582826,1.1514,2376.5,2376.4,0.42082]
[1725553583428,1.1514,2376.5,2376.1,1.43558]
[1725553583429,3.2078,2376.6,2376.5,0.4208]
[1725553585232,0.3757,2376.9,2376.8,0.42075]
[1725553585439,3.566,2377.0,2376.8,0.42074]
[1725553585730,0.42074,2376.9,2376.5,1.05201]
[1725553586237,3.98673,2377.0,2376.9,0.42073]
[1725553586428,3.566,2377.0,2376.6,1.05197]
[1725553586625,3.566,2377.0,2376.8,0.42073]
[1725553586626,0.42073,2376.9,2376.8,0.42073]
[1725553586928,0.4208,2376.5,2376.2,0.3669]
[1725553587137,3.6286,2376.6,2376.5,0.4208]
[1725553587428,3.2078,2376.6,2376.1,0.3834]
[1725553587631,3.2078,2376.3,2376.0,0.00631021]
[1725553588132,3.2078,2376.3,2376.1,0.42086]
[1725553588133,0.42087,2376.2,2376.1,0.42086]
[1725553589234,3.2078,2376.3,2376.0,0.00631021]
[1725553589235,0.42087,2376.1,2376.0,0.00631021]
[1725553589424,0.42087,2376.1,2376.0,0.42720021]
[1725553590334,3.2078,2376.3,2376.2,0.42086]
[1725553590534,0.7477,2376.5,2376.1,0.3724]
[1725553590839,0.7477,2376.5,2376.4,0.42082]
[1725553591142,3.2078,2376.6,2376.5,0.4208]
[1725553592237,0.3651,2376.9,2376.8,0.42075]
[1725553592430,3.5785,2377.0,2376.9,0.42073]
[1725553592740,3.2078,2377.0,2376.9,0.42073]
[1725553593235,0.3907,2377.3,2377.2,0.42068]
[1725553593429,2.74650686,2377.4,2377.3,0.42066]
[1725553594335,0.00631021,2377.4,2377.3,0.42066]
[1725553594741,0.00631021,2377.4,2377.3,8.01706]
[1725553595038,0.00631021,2377.4,2377.3,0.42066]
[1725553595936,0.00631021,2377.4,2377.1,3.39]
[1725553596126,0.00631021,2377.4,2377.2,0.42067]
[1725553596536,3.21411021,2377.4,2377.2,0.42068]
[1725553596844,0.00631021,2377.4,2377.2,0.42068]
[1725553597143,0.00631021,2377.4,2376.9,0.7248]
[1725553597433,0.00631021,2377.4,2376.9,0.77823]
[1725553597434,3.6285,2377.1,2376.9,0.77823]
[1725553597629,0.81187,2377.3,2377.0,0.42071]
[1725553597830,3.62848,2377.2,2377.0,0.42071]
[1725553598045,3.62848,2377.2,2376.9,0.3575]
[1725553598046,3.2078,2377.2,2376.9,0.3575]
[1725553598340,0.42071,2377.0,2376.7,0.42076]
[1725553598540,2.74019665,2377.0,2376.4,0.3604]
[1725553598840,0.42076,2376.8,2376.6,0.42078]
[1725553599235,0.42077,2376.7,2376.5,0.4208]
[1725553599436,3.2078,2376.6,2376.5,0.4208]
[1725553599635,2.74019665,2376.9,2376.8,0.42075]
[1725553599846,0.80321,2377.0,2376.6,3.5821]
[1725553600031,0.3825,2377.0,2376.8,0.42074]
[1725553600232,0.80321,2377.0,2376.8,0.42074]
[1725553600431,0.80321,2377.0,2376.5,3.39]
[1725553600432,6.94739665,2376.9,2376.5,0.4208]
[1725553600635,3.16093665,2376.9,2376.4,0.3604]
[1725553600841,3.16093665,2376.9,2376.7,0.42077]
[1725553601237,3.16093665,2376.9,2376.6,0.42077]
[1725553601238,0.42075,2376.8,2376.6,0.42077]
[1725553601537,0.42075,2376.8,2376.5,0.4208]
[1725553601742,0.379,2376.7,2376.6,0.42079]
[1725553602539,2.74019665,2376.9,2376.4,3.5682]
[1725553602741,0.3825,2377.0,2376.9,0.42073]
[1725553603041,2.74019665,2377.1,2377.0,0.42071]
[1725553603238,2.74019665,2377.3,2376.8,4.44188]
[1725553603442,0.42696021,2377.4,2377.3,0.42066]
[1725553603443,0.00631021,2377.4,2377.3,0.42066]
[1725553607638,0.00631021,2377.4,2377.3,9.06872]
[1725553607837,0.00631021,2377.4,2377.3,12.27652]
[1725553608340,0.00631021,2377.4,2377.3,11.58796]
[1725553609742,7.42051021,2377.4,2376.9,6.9901]
[1725553609944,0.00631021,2377.4,2377.3,0.42066]
[1725553611647,0.42697021,2377.4,2376.9,3.6001]
[1725553611842,0.42697021,2377.4,2376.9,3.2078]
[1725553611843,3.21411021,2377.4,2376.9,3.2078]
[1725553612044,0.42073,2377.0,2376.8,0.42075]
[1725553612555,0.3602,2377.0,2376.9,0.42073]
[1725553613548,3.2078,2377.1,2377.0,0.42071]
[1725553616248,0.39811021,2377.4,2377.0,4.2072]
[1725553616455,0.39811021,2377.4,2377.3,0.42066]
[1725553617549,0.00631021,2377.4,2377.3,0.42066]
[1725553617952,0.00631021,2377.4,2377.3,5.67872]
[1725553618147,0.00631021,2377.4,2377.3,8.88652]
[1725553618346,0.00631021,2377.4,2377.3,9.93818]
[1725553618547,3.2078,2377.8,2377.7,0.42059]
[1725553620357,7.4134,2377.8,2377.5,0.00631021]
[1725553620660,0.4206,2377.7,2377.5,0.00631021]
[1725553621155,4.62621,2377.6,2377.5,0.00631021]
[1725553621354,4.98221,2377.6,2377.5,0.00631021]
[1725553621552,12.03374,2377.6,2377.5,0.00631021]
[1725553622265,12.03374,2377.6,2377.0,4.146]
[1725553622266,0.42069,2377.2,2377.0,4.146]
[1725553622555,3.6285,2377.1,2377.0,4.146]
[1725553622762,3.2078,2377.1,2377.0,4.56671]
[1725553623155,3.6285,2377.1,2377.0,4.146]
[1725553623356,3.6285,2377.1,2377.0,0.42071]
[1725553623858,3.2078,2377.1,2377.0,0.42071]
[1725553624055,0.42073,2376.9,2376.8,0.00631021]
[1725553624459,0.42083,2376.4,2376.1,0.42087]
[1725553624762,0.3704,2376.3,2376.2,0.42086]
[1725553624957,0.3704,2376.3,2375.9,0.42091]
[1725553625158,0.3587,2376.2,2375.8,0.3616]
[1725553625458,0.36501021,2376.2,2376.1,0.42087]
[1725553625659,0.36501021,2376.2,2376.0,0.42088]
[1725553625955,0.36501021,2376.2,2375.8,0.36791021]
[1725553626162,0.36501021,2376.2,2376.1,0.42087]
[1725553626753,0.36501021,2376.2,2375.8,0.36791021]
[1725553627056,0.00631021,2376.2,2376.1,0.42087]
[1725553629158,0.00631021,2376.2,2376.1,5.68186]
[1725553629376,0.00631021,2376.2,2376.1,4.62967]
[1725553629665,0.00631021,2376.2,2376.1,10.62967]
[1725553629864,0.00631021,2376.2,2376.1,11.68186]
[1725553630461,0.00631021,2376.2,2376.1,4.62967]
[1725553631659,0.00631021,2376.2,2376.0,0.42089]
[1725553631854,0.00631021,2376.2,2376.1,0.42087]
[1725553636972,0.00631021,2376.2,2376.1,4.62967]
[1725553637172,0.00631021,2376.2,2376.1,0.42087]
[1725553637564,0.00631021,2376.2,2376.1,4.62967]
[1725553637868,0.00631021,2376.2,2376.1,0.42087]
[1725553639472,0.00631021,2376.2,2376.1,1.47306]
[1725553639979,0.00631021,2376.2,2376.1,0.42087]
[1725553640275,0.00631021,2376.2,2375.8,1.42020021]
[1725553640276,0.42091,2375.9,2375.8,0.00631021]
[1725553640463,3.62871,2375.9,2375.8,0.00631021]
[1725553640867,4.68099,2375.9,2375.8,0.00631021]
[1725553641466,3.62871,2375.9,2375.8,0.42724021]
[1725553642066,3.62871,2375.9,2375.8,0.00631021]
[1725553642463,3.62871,2375.9,2375.8,0.42724021]
[1725553642979,3.2078,2375.9,2375.8,0.42724021]
[1725553643476,0.7529,2376.1,2376.0,0.42089]
[1725553644983,0.7529,2376.1,2375.9,0.4209]
[1725553645180,0.42091,2375.9,2375.8,0.42723021]
[1725553645474,0.42091,2375.9,2375.8,0.00631021]
[1725553645679,4.62971,2375.9,2375.8,0.00631021]
[1725553646081,0.3686,2376.0,2375.8,0.42723021]
[1725553646276,0.42091,2375.9,2375.8,0.42723021]
[1725553646478,0.42091,2375.9,2375.8,0.00631021]
[1725553646676,4.62971,2375.9,2375.8,0.00631021]
[1725553647277,5.68199,2375.9,2375.8,0.00631021]
[1725553647484,4.62971,2375.9,2375.8,0.00631021]
[1725553647985,5.68199,2375.9,2375.8,0.00631021]
[1725553648382,1.47357,2375.3,2375.2,0.211]
[1725553648593,0.42108,2375.0,2374.8,0.4211]
[1725553648790,0.42109,2374.9,2374.8,0.4211]
[1725553648976,1.43291,2375.2,2374.1,4.65404]
[1725553648977,3.2078,2375.0,2374.1,4.65404]
[1725553649179,0.42113,2374.7,2374.5,0.42115]
[1725553649785,0.42743021,2374.8,2374.6,0.42114]
[1725553650186,0.00631021,2374.8,2374.7,0.42112]
[1725553652788,0.00631021,2374.8,2374.6,0.42113]
[1725553652985,0.42113,2374.7,2374.5,0.42114]
[1725553653185,0.79003,2374.7,2374.5,0.42114]
[1725553654193,3.5767,2374.7,2374.4,0.00631021]
[1725553654390,0.42116,2374.5,2374.4,0.00631021]
[1725553654789,0.42116,2374.5,2374.4,0.42749021]
[1725553654988,0.3742,2374.6,2374.4,0.42749021]
[1725553655195,0.42116,2374.5,2374.4,0.00631021]
[1725553655789,0.3742,2374.6,2374.4,0.00631021]
[1725553656091,0.3742,2374.6,2374.5,0.42116]
[1725553656482,3.5767,2374.7,2374.6,0.42114]
[1725553656989,0.3689,2374.7,2374.6,0.42114]
[1725553657596,0.00631021,2374.8,2374.7,0.42112]
[1725553659895,0.42742021,2374.8,2374.6,0.42113]
[1725553660097,0.42742021,2374.8,2374.7,0.42112]
[1725553660395,0.42742021,2374.8,2374.6,0.42113]
[1725553660593,0.42114,2374.6,2374.5,0.42115]
[1725553660791,3.2078,2374.7,2374.5,0.42115]
[1725553661096,0.3801,2374.6,2374.5,0.42115]
[1725553661795,0.42116,2374.5,2374.4,0.00631021]
[1725553661996,1.86816,2374.5,2374.4,0.00631021]
[1725553662201,6.46356,2374.5,2374.4,0.00631021]
[1725553662407,0.42125,2374.0,2373.8,0.3705]
[1725553662599,0.42128,2373.8,2373.6,0.42131]
[1725553662801,0.81538,2373.9,2373.7,0.4213]
[1725553663111,0.81538,2373.9,2373.6,0.4213]
[1725553663600,0.42129,2373.8,2373.5,0.42764021]
[1725553663799,0.42129,2373.8,2373.6,0.42132]
[1725553663993,3.6019,2373.9,2373.6,0.42132]
[1725553663994,4.02317,2373.9,2373.6,0.42132]
[1725553664298,4.02318,2373.9,2373.7,0.4213]
[1725553664504,0.3941,2373.9,2373.5,0.00631021]
[1725553664693,0.3941,2373.9,2373.7,0.42129]
[1725553665294,0.3941,2373.9,2373.6,0.42131]
[1725553665295,0.81537,2373.9,2373.6,0.42131]
[1725553665497,0.3941,2373.9,2373.5,0.42764021]
[1725553665790,0.42129,2373.8,2373.6,0.42132]
[1725553666203,4.02318,2373.9,2373.6,0.42132]
[1725553666898,3.2078,2373.9,2373.8,0.42128]
[1725553667204,3.2078,2374.2,2373.7,1.05323]
[1725553667400,3.2078,2374.2,2374.1,0.42123]
[1725553668398,3.2078,2374.2,2374.0,0.42123]
[1725553668597,3.2078,2374.2,2373.7,3.2078]
[1725553668598,3.2078,2374.2,2374.1,0.42123]
[1725553669899,0.7498,2374.4,2374.3,0.42119]
[1725553670398,3.62894,2374.6,2374.5,0.42116]
[1725553670399,3.2078,2374.6,2374.5,0.42116]
[1725553670594,0.36941021,2374.8,2374.7,0.42112]
[1725553670798,0.36941021,2374.8,2374.3,0.362]
[1725553671007,0.36941021,2374.8,2374.4,0.42118]
[1725553671008,3.2078,2374.6,2374.4,0.42118]
[1725553671301,3.2078,2374.6,2374.4,0.42117]
[1725553671302,3.62895,2374.6,2374.4,0.42117]
[1725553671503,7.84015,2374.6,2373.9,1.78594]
[1725553671812,0.42116,2374.5,2374.2,0.4212]
[1725553672005,0.42116,2374.5,2374.3,0.42119]
[1725553672306,3.2078,2374.6,2374.0,1.0531]
[1725553672505,3.2078,2374.6,2374.4,0.42117]
[1725553672506,3.62894,2374.6,2374.4,0.42117]
[1725553672706,3.2078,2374.6,2374.5,0.42116]
[1725553673207,7.419,2374.6,2374.5,0.42116]
[1725553673399,7.84014,2374.6,2374.4,0.42116]
[1725553673608,3.2078,2374.6,2374.5,0.42116]
[1725553676010,3.2078,2374.6,2374.5,0.78336]
[1725553676920,3.2078,2374.6,2374.5,1.83626]
[1725553677316,3.2078,2374.6,2374.5,0.78336]
[1725553677818,0.36941021,2374.8,2374.7,0.42112]
[1725553679705,0.79051021,2374.8,2374.3,1.05298]
[1725553679905,0.42115,2374.6,2374.5,0.42115]
[1725553680116,4.2112,2374.6,2374.1,3.2078]
[1725553680308,3.62898,2374.4,2374.3,0.42119]
[1725553680504,0.4212,2374.3,2374.2,0.4212]
[1725553680709,0.7332,2374.3,2373.8,1.42457]
[1725553680917,0.7332,2374.3,2373.6,0.3774]
[1725553680918,0.42127,2373.9,2373.6,0.3774]
[1725553681120,0.42127,2373.9,2373.5,0.00631021]
[1725553681121,4.00718,2373.8,2373.7,0.42129]
[1725553681418,4.00718,2373.8,2373.5,0.42763021]
[1725553681419,0.4213,2373.7,2373.5,0.42763021]
[1725553681811,0.3555,2373.7,2373.6,0.42132]
[1725553682016,0.7768,2373.7,2373.5,0.42763021]
[1725553682316,0.42132,2373.6,2373.5,0.00631021]
[1725553682521,0.3555,2373.7,2373.5,0.42763021]
[1725553682815,3.2078,2374.1,2373.9,0.42125]
[1725553683020,3.62903,2374.1,2373.9,0.42125]
[1725553683224,3.62903,2374.1,2373.8,0.42127]
[1725553683517,3.62903,2374.1,2373.6,0.3714]
[1725553683518,3.2078,2374.1,2373.6,0.3714]
[1725553683822,3.62903,2374.1,2373.9,0.42126]
[1725553684116,3.2078,2374.1,2374.0,0.42125]
[1725553684518,7.4198,2374.1,2373.8,0.42128]
[1725553684713,0.42126,2374.0,2373.8,0.42128]
[1725553684908,0.42126,2374.0,2373.5,0.38961021]
[1725553684909,3.62904,2374.1,2373.9,0.42126]
[1725553685315,3.2078,2374.1,2374.0,0.42125]
[1725553687814,3.2078,2374.1,2374.0,5.68637]
[1725553688116,3.9219,2374.7,2374.6,0.42114]
[1725553690118,0.00631021,2374.8,2374.7,2.52674]
[1725553690319,2.74115546,2375.2,2375.1,0.42105]
[1725553690514,3.62879,2375.5,2374.9,1.05272]
[1725553690515,2.74115546,2375.4,2374.9,1.05272]
[1725553690716,3.16215546,2375.4,2375.2,0.42102]
[1725553690911,0.42102,2375.3,2375.1,0.42104]
[1725553691116,2.74115546,2375.4,2375.3,0.42102]
[1725553691518,2.74746567,2375.6,2375.5,0.42098]
[1725553691812,0.00631021,2375.6,2375.5,0.42098]
[1725553692921,2.74115546,2375.9,2375.5,13.6096]
[1725553693225,4.88587828,2376.6,2376.4,0.42081]
[1725553693226,2.95215546,2376.6,2376.4,0.42081]
[1725553693417,2.74115546,2376.6,2376.2,0.42085]
[1725553693623,3.62862,2376.4,2376.2,0.42085]
[1725553694021,3.16827567,2376.5,2376.2,0.42085]